fUST/lending_fUST_20250506
["ID","MTS","AMOUNT","RATE_DAILY","PERIOD"]
[360041529,1746511832628,-1837.83864495,0.00017748,2]
[360041530,1746511832638,-1837.83864495,0.00017748,2]
[360041531,1746511832648,-1837.83864495,0.00017748,2]
[360041532,1746511832657,-1837.83864495,0.00017748,2]
[360041533,1746511832666,-1837.83864495,0.00017748,2]
[360041534,1746511832676,-1837.83864495,0.00017748,2]
[360041535,1746511832685,-1837.83864495,0.00017748,2]
[360041536,1746511832695,-1837.83864495,0.00017748,2]
[360041537,1746511832705,-1837.83864495,0.00017748,2]
[360041538,1746511832715,-1837.83864495,0.00017748,2]
[360041539,1746511832724,-1837.83864495,0.00017748,2]
[360041540,1746511832734,-1837.83864495,0.00017748,2]
[360041541,1746511832743,-1837.83864495,0.00017748,2]
[360041542,1746511832753,-1778.84629338,0.00017748,2]
[360041543,1746511832763,-1778.84629338,0.00017748,2]
[360041544,1746511832772,-1778.84629338,0.00017748,2]
[360041545,1746511832782,-1778.84629338,0.00017748,2]
[360041546,1746511832792,-1778.84629338,0.00017748,2]
[360041547,1746511832802,-1778.84629338,0.00017748,2]
[360041548,1746511832812,-1778.84629338,0.00017748,2]
[360041549,1746511832822,-1778.84629338,0.00017748,2]
[360041550,1746511832832,-1778.84629338,0.00017748,2]
[360041551,1746511832842,-1778.84629338,0.00017748,2]
[360041552,1746511832852,-1778.84629338,0.00017748,2]
[360041553,1746511832862,-1778.84629338,0.00017748,2]
[360041554,1746511832871,-1778.84629338,0.00017748,2]
[360041555,1746511832880,-1778.84629338,0.00017748,2]
[360041556,1746511832890,-1778.84629338,0.00017748,2]
[360041557,1746511832899,-1778.84629338,0.00017748,2]
[360041558,1746511832909,-1778.84629338,0.00017748,2]
[360041559,1746511832919,-1778.84629338,0.00017748,2]
[360041560,1746511832928,-1778.84629338,0.00017748,2]
[360041561,1746511832938,-1778.84629339,0.00017748,2]
[360041562,1746511832947,-1190.17019943,0.00017748,2]
[360041563,1746511832959,-588.67609396,0.00017748,2]
[360041564,1746511832969,-1778.84629339,0.00017748,2]
[360041565,1746511832979,-1778.84629339,0.00017748,2]
[360041566,1746511832989,-1778.84629339,0.00017748,2]
[360041567,1746511832998,-1778.84629339,0.00017748,2]
[360041568,1746511833008,-1778.84629339,0.00017748,2]
[360041569,1746511833018,-1778.84629339,0.00017748,2]
[360041570,1746511833028,-4565.67,0.00017752,3]
[360041571,1746511833037,-2282.83,0.00017752,3]
[360041572,1746511833048,-1219.13,0.00017752,3]
[360041573,1746511833058,-643.1,0.00017752,3]
[360041574,1746511833068,-482.35,0.00017752,3]
[360041575,1746511833077,-152.0,0.00017765,2]
[360041576,1746511833087,-500.0,0.00017774,2]
[360041577,1746511833097,-160.78,0.00017777,3]
[360041578,1746511833107,-706.59567983,0.00017779,2]
[360041579,1746511833116,-151.0,0.00017786,2]
[360041580,1746511833126,-151.0,0.00017786,2]
[360041581,1746511833136,-151.0,0.00017786,2]
[360041582,1746511833146,-152.466521,0.00017786,2]
[360041583,1746511833156,-151.0,0.00017786,2]
[360041584,1746511833166,-151.0,0.00017786,2]
[360041585,1746511833176,-151.0,0.00017786,2]
[360041586,1746511833187,-151.0,0.00017786,2]
[360041587,1746511833199,-151.0,0.00017786,2]
[360041588,1746511833210,-151.0,0.00017786,2]
[360041589,1746511833220,-151.0,0.00017786,2]
[360041590,1746511833230,-151.0,0.00017786,2]
[360041591,1746511833241,-151.0,0.00017786,2]
[360041592,1746511833251,-158.82804,0.00017786,2]
[360041593,1746511833261,-151.0,0.00017786,2]
[360041594,1746511833270,-151.0,0.00017786,2]
[360041595,1746511833280,-151.0,0.00017786,2]
[360041596,1746511833290,-151.0,0.00017786,2]
[360041597,1746511833299,-176.98025569,0.00017786,2]
[360041598,1746511833309,-1001.14143726,0.00017786,2]
[360041599,1746511833319,-164.60797,0.00017787,2]
[360041600,1746511833329,-690.36702,0.00017787,2]
[360041601,1746511833343,-690.36702,0.00017787,2]
[360041602,1746511833354,-690.36702,0.00017787,2]
[360041603,1746511833363,-690.36702,0.00017787,2]
[360041604,1746511833375,-690.36702,0.00017787,2]
[360041605,1746511833385,-690.36702,0.00017787,2]
[360041606,1746511833395,-151.0,0.00017788,2]
[360041607,1746511833405,-151.0,0.00017788,2]
[360041608,1746511833417,-151.0,0.00017788,2]
[360041609,1746511833426,-690.36702,0.00017788,2]
[360041610,1746511833437,-690.36702,0.00017788,2]
[360041611,1746511833447,-151.0,0.00017788,2]
[360041612,1746511833457,-151.0,0.00017788,2]
[360041613,1746511833467,-151.0,0.00017788,2]
[360041614,1746511833477,-151.0,0.00017788,2]
[360041615,1746511833488,-151.0,0.00017788,2]
[360041616,1746511833497,-151.0,0.00017788,2]
[360041617,1746511833508,-151.0,0.00017788,2]
[360041618,1746511833517,-321.55,0.00017793,3]
[360041619,1746511833527,-151.0,0.00017799,2]
[360041620,1746511833537,-151.0,0.00017799,2]
[360041621,1746511833546,-151.0,0.00017799,2]
[360041622,1746511833556,-199.186872,0.00017799,2]
[360041623,1746511833565,-151.0,0.00017799,2]
[360041624,1746511833574,-151.0,0.00017799,2]
[360041625,1746511833584,-191.4,0.00017799,2]
[360041626,1746511833593,-191.4,0.00017799,2]
[360041627,1746511833603,-191.4,0.00017799,2]
[360041628,1746511833613,-251.336493,0.000178,2]
[360041629,1746511833622,-251.336493,0.000178,2]
[360041630,1746511833632,-250.0,0.000178,2]
[360041631,1746511833641,-151.0,0.000178,2]
[360041632,1746511833651,-151.0,0.000178,2]
[360041633,1746511833661,-151.0,0.000178,2]
[360041634,1746511833671,-151.0,0.000178,2]
[360041635,1746511833839,-1188.784171,0.000178,2]
[360041636,1746511833850,-1188.784171,0.000178,2]
[360041637,1746511833859,-265.093591,0.000178,2]
[360041638,1746511833869,-183.0,0.000178,2]
[360041639,1746511833878,-251.336493,0.00017802,2]
[360041640,1746511833888,-251.336493,0.00017802,2]
[360041641,1746511833897,-151.0,0.00017803,2]
[360041642,1746511833907,-158.933712,0.00017803,2]
[360041643,1746511833916,-158.479145,0.00017803,2]
[360041644,1746511833925,-255.697041,0.00017803,2]
[360041645,1746511833935,-255.697041,0.00017803,2]
[360041646,1746511833944,-255.697041,0.00017803,2]
[360041647,1746511833954,-255.697041,0.00017803,2]
[360041648,1746511833964,-255.697041,0.00017803,2]
[360041649,1746511833974,-255.697041,0.00017803,2]
[360041650,1746511833985,-255.697041,0.00017803,2]
[360041651,1746511833996,-255.697041,0.00017803,2]
[360041652,1746511834006,-255.697041,0.00017803,2]
[360041653,1746511834015,-255.697041,0.00017803,2]
[360041654,1746511834025,-564.814596,0.00017803,2]
[360041655,1746511834035,-564.814596,0.00017803,2]
[360041656,1746511834044,-151.0,0.00017803,2]
[360041657,1746511834055,-151.0,0.00017803,2]
[360041658,1746511834065,-151.0,0.00017803,2]
[360041659,1746511834076,-151.0,0.00017803,2]
[360041660,1746511834090,-153.140766,0.00017803,2]
[360041661,1746511834100,-151.715975,0.00017803,2]
[360041662,1746511834112,-202.330483,0.00017803,2]
[360041663,1746511834122,-202.330483,0.00017803,2]
[360041664,1746511834131,-515.137512,0.00017803,2]
[360041665,1746511834140,-515.137512,0.00017803,2]
[360041666,1746511834151,-151.0,0.00017805,2]
[360041667,1746511834162,-151.0,0.00017805,2]
[360041668,1746511834172,-332.454296,0.00017805,2]
[360041669,1746511834181,-332.454296,0.00017805,2]
[360041670,1746511834191,-332.454296,0.00017805,2]
[360041671,1746511834202,-332.454296,0.00017805,2]
[360041672,1746511834212,-332.454296,0.00017805,2]
[360041673,1746511834222,-332.454296,0.00017805,2]
[360041674,1746511834232,-151.0,0.00017805,2]
[360041675,1746511834242,-690.36702,0.00017805,2]
[360041676,1746511834252,-690.36702,0.00017805,2]
[360041677,1746511834261,-151.0,0.00017805,2]
[360041678,1746511834271,-151.0,0.00017805,2]
[360041679,1746511834282,-151.0,0.00017805,2]
[360041680,1746511834292,-51.99780677,0.00017805,2]
[360041681,1746511834310,-99.00219323,0.00017805,2]
[360041682,1746511834320,-151.0,0.00017805,2]
[360041683,1746511834333,-151.0,0.00017805,2]
[360041684,1746511834345,-151.0,0.00017805,2]
[360041685,1746511834355,-332.454296,0.00017814,2]
[360041686,1746511834364,-9.14351077,0.00017814,2]
[360041687,1746511834376,-323.31078523,0.00017814,2]
[360041688,1746511834387,-246.14045643,0.00017814,2]
[360041696,1746511838109,-183.0,0.000178,2]
[360041697,1746511838119,-86.31383957,0.00017814,2]
[360041698,1746511838128,-332.454296,0.00017814,2]
[360041699,1746511838138,-151.0,0.00017816,2]
[360041700,1746511838147,-151.0,0.00017816,2]
[360041701,1746511838156,-81.3682368,0.00017816,2]
[360041760,1746511845988,-52.50884239,0.000178,2]
[360041762,1746511864521,52.21872829,0.00016818,2]
[360041763,1746511865133,-193.26188945,0.00016818,2]
[360041764,1746511871164,-166.0,0.00016818,2]
[360041765,1746511874815,-164.48953,0.00016799,2]
[360041766,1746511874838,-53.45428343,0.00016818,2]
[360041767,1746511880534,-197.83910288,0.00016818,2]
[360041768,1746511885745,-166.0,0.00016818,2]
[360041769,1746511891021,-227.4376699,0.00016818,2]
[360041770,1746511898991,-364.53421031,0.00016818,2]
[360041771,1746511908438,-208.88601231,0.00016818,2]
[360041772,1746511913458,-216.99279676,0.00016818,2]
[360041773,1746511916713,-198.17130089,0.00016818,2]
[360041775,1746511921521,-304.69188176,0.00016818,2]
[360041776,1746511925049,-300.0,0.00016818,2]
[360041777,1746511932101,-155.0,0.00016818,2]
[360041778,1746511937647,-456.46511046,0.00016818,2]
[360041779,1746511941803,-263.65862462,0.00016818,2]
[360041780,1746511942399,-5029.06310444,0.00016818,2]
[360041781,1746511942421,-164.48953,0.00016883,2]
[360041782,1746511945136,-229.72458955,0.0001707,2]
[360041783,1746511951351,-20.27541045,0.0001707,2]
[360041784,1746511951378,-181.67032445,0.0001707,2]
[360041786,1746511956186,-18.50480408,0.0001707,2]
[360041787,1746511978395,-220.01093085,0.0001707,2]
[360041788,1746511984344,-29.98906915,0.0001707,2]
[360041790,1746512091998,-250.0,0.0001707,2]
[360041791,1746512092024,-300.0,0.00017737,2]
[360041792,1746512092049,-500.0,0.00017737,2]
[360041793,1746512092074,-500.0,0.00017737,2]
[360041794,1746512092099,-500.0,0.00017737,2]
[360041795,1746512092122,-194.13003534,0.00017737,2]
[360041796,1746512092146,-309.77883788,0.00017737,2]
[360041797,1746512092171,-500.0,0.00017737,2]
[360041798,1746512092196,-215.57495317,0.00017737,2]
[360041799,1746512092220,-477.44035112,0.00017737,2]
[360041800,1746512092245,-500.0,0.00017738,2]
[360041801,1746512092269,-246.24790435,0.00017738,2]
[360041802,1746512092293,-500.0,0.00017738,2]
[360041803,1746512092317,-176.25666495,0.00017738,2]
[360041804,1746512092341,-393.20048935,0.00017739,2]
[360041805,1746512092367,-500.0,0.00017739,2]
[360041806,1746512092392,-500.0,0.00017739,2]
[360041807,1746512092422,-500.0,0.00017739,2]
[360041808,1746512092449,-369.38635334,0.00017739,2]
[360041809,1746512092473,-50000.0,0.00017739,2]
[360041810,1746512092498,-151.0,0.00017767,2]
[360041811,1746512092523,-379.756579,0.00017788,2]
[360041812,1746512092546,-379.756579,0.00017788,2]
[360041813,1746512092570,-151.0,0.00017788,2]
[360041814,1746512092594,-151.0,0.00017788,2]
[360041815,1746512092618,-130.49115761,0.000178,2]
[360041816,1746512092642,-182.39818443,0.000178,2]
[360041817,1746512092665,-69.6317632,0.00017816,2]
[360041818,1746512092689,-221.765669,0.00017816,2]
[360041819,1746512092714,-332.454296,0.00017816,2]
[360041820,1746512092738,-332.454296,0.00017816,2]
[360041821,1746512092762,-255.697041,0.00017816,2]
[360041822,1746512092786,-151.0,0.00017816,2]
[360041823,1746512092811,-153.185526,0.00017816,2]
[360041824,1746512092835,-251.336493,0.00017816,2]
[360041825,1746512092859,-251.336493,0.00017816,2]
[360041826,1746512092883,-151.0,0.00017816,2]
[360041827,1746512092908,-690.36702,0.00017816,2]
[360041828,1746512092933,-690.36702,0.00017816,2]
[360041829,1746512092958,-151.0,0.00017816,2]
[360041830,1746512092983,-151.0,0.00017816,2]
[360041831,1746512093008,-151.0,0.00017816,2]
[360041832,1746512093032,-151.0,0.00017816,2]
[360041833,1746512093056,-151.0,0.00017816,2]
[360041834,1746512093081,-151.0,0.00017816,2]
[360041835,1746512093105,-564.814596,0.00017816,2]
[360041836,1746512093130,-564.814596,0.00017816,2]
[360041837,1746512093154,-151.0,0.00017816,2]
[360041838,1746512093178,-151.0,0.00017816,2]
[360041839,1746512093203,-151.0,0.00017816,2]
[360041840,1746512093228,-869.246126,0.00017816,2]
[360041841,1746512093252,-151.0,0.00017816,2]
[360041842,1746512093277,-869.246126,0.00017816,2]
[360041843,1746512093301,-151.0,0.00017816,2]
[360041844,1746512093494,-164.307036,0.00017816,2]
[360041845,1746512093518,-151.0,0.00017816,2]
[360041846,1746512093541,-1188.784171,0.00017816,2]
[360041847,1746512093563,-1188.784171,0.00017816,2]
[360041848,1746512093586,-151.0,0.00017816,2]
[360041849,1746512093609,-151.0,0.00017816,2]
[360041850,1746512093632,-151.0,0.00017816,2]
[360041851,1746512093654,-151.0,0.00017816,2]
[360041852,1746512093677,-1362.730722,0.00017816,2]
[360041853,1746512093700,-1362.730722,0.00017816,2]
[360041854,1746512093725,-379.756579,0.00017816,2]
[360041855,1746512093748,-379.756579,0.00017816,2]
[360041856,1746512093772,-526.772488,0.00017816,2]
[360041857,1746512093795,-526.772488,0.00017816,2]
[360041858,1746512093818,-151.0,0.00017816,2]
[360041859,1746512093841,-151.0,0.00017816,2]
[360041860,1746512093864,-151.0,0.00017816,2]
[360041861,1746512093887,-151.0,0.00017816,2]
[360041862,1746512093910,-21161.31888593,0.00017816,2]
[360041863,1746512093932,-500.0,0.00017817,2]
[360041864,1746512093956,-151.0,0.00017817,2]
[360041865,1746512093981,-151.0,0.00017817,2]
[360041866,1746512094005,-151.0,0.00017817,2]
[360041867,1746512094029,-151.0,0.00017817,2]
[360041868,1746512094053,-151.0,0.00017817,2]
[360041869,1746512094077,-151.0,0.00017817,2]
[360041870,1746512094100,-153.740881,0.00017817,2]
[360041871,1746512094123,-151.0,0.00017817,2]
[360041872,1746512094146,-332.454296,0.00017817,2]
[360041873,1746512094168,-332.454296,0.00017817,2]
[360041874,1746512094191,-337.972163,0.00017817,2]
[360041875,1746512094215,-337.972163,0.00017817,2]
[360041876,1746512094238,-337.972163,0.00017817,2]
[360041877,1746512094261,-337.972163,0.00017817,2]
[360041878,1746512094284,-337.972163,0.00017817,2]
[360041879,1746512094307,-337.972163,0.00017817,2]
[360041880,1746512094332,-337.972163,0.00017817,2]
[360041881,1746512094359,-337.972163,0.00017817,2]
[360041882,1746512094387,-151.0,0.00017817,2]
[360041883,1746512094413,-153.156188,0.00017817,2]
[360041884,1746512094437,-151.0,0.00017817,2]
[360041885,1746512094461,-151.0,0.00017817,2]
[360041886,1746512094486,-245.808164,0.00017817,2]
[360041887,1746512094510,-245.808164,0.00017817,2]
[360041888,1746512094534,-151.0,0.00017817,2]
[360041889,1746512094573,-151.0,0.00017817,2]
[360041890,1746512094607,-151.0,0.00017817,2]
[360041891,1746512094642,-151.0,0.00017817,2]
[360041892,1746512094679,-151.0,0.00017817,2]
[360041893,1746512094713,-184.872642,0.00017817,2]
[360041894,1746512094748,-184.872642,0.00017817,2]
[360041895,1746512094781,-202.330483,0.00017817,2]
[360041896,1746512094818,-202.330483,0.00017817,2]
[360041897,1746512094857,-515.137512,0.00017817,2]
[360041898,1746512094888,-515.137512,0.00017817,2]
[360041899,1746512094925,-512.275032,0.00017817,2]
[360041900,1746512094959,-512.275032,0.00017817,2]
[360041901,1746512094991,-151.235921,0.00017818,2]
[360041902,1746512095025,-151.235921,0.00017818,2]
[360041903,1746512095057,-151.235921,0.00017818,2]
[360041904,1746512095089,-151.235921,0.00017818,2]
[360041905,1746512095121,-151.235921,0.00017818,2]
[360041906,1746512095151,-151.235921,0.00017818,2]
[360041907,1746512095183,-151.235921,0.00017818,2]
[360041908,1746512095214,-151.235921,0.00017818,2]
[360041909,1746512095245,-151.235921,0.00017818,2]
[360041910,1746512095278,-151.235921,0.00017818,2]
[360041911,1746512095313,-151.235921,0.00017818,2]
[360041912,1746512095345,-151.235921,0.00017818,2]
[360041913,1746512095378,-151.235921,0.00017818,2]
[360041914,1746512095411,-151.235921,0.00017818,2]
[360041915,1746512095444,-332.454296,0.00017818,2]
[360041916,1746512095480,-332.454296,0.00017818,2]
[360041917,1746512095512,-337.972163,0.00017818,2]
[360041918,1746512095543,-337.972163,0.00017818,2]
[360041919,1746512095575,-255.697041,0.00017818,2]
[360041920,1746512095605,-235.151899,0.00017818,2]
[360041921,1746512095637,-251.336493,0.00017818,2]
[360041922,1746512095668,-251.336493,0.00017818,2]
[360041923,1746512095698,-151.0,0.00017818,2]
[360041924,1746512095731,-690.36702,0.00017818,2]
[360041925,1746512095763,-690.36702,0.00017818,2]
[360041926,1746512095793,-500.0,0.00017818,2]
[360041927,1746512095823,-500.0,0.00017818,2]
[360041928,1746512095854,-151.0,0.00017818,2]
[360041929,1746512095883,-151.0,0.00017818,2]
[360041930,1746512095914,-151.0,0.00017818,2]
[360041931,1746512095943,-151.0,0.00017818,2]
[360041932,1746512095967,-151.0,0.00017818,2]
[360041933,1746512096211,-151.0,0.00017818,2]
[360041934,1746512096276,-3216.23,0.00017822,3]
[360041935,1746512096301,-1813.45,0.00017822,3]
[360041936,1746512096326,-906.73,0.00017822,3]
[360041937,1746512096351,-453.36,0.00017822,3]
[360041938,1746512096375,-226.68,0.00017822,3]
[360041939,1746512096399,-152.0,0.00017826,2]
[360041940,1746512096427,-151.0,0.00017829,2]
[360041941,1746512096451,-151.0,0.0001783,2]
[360041942,1746512096474,-151.0,0.0001783,2]
[360041943,1746512096497,-151.0,0.0001783,2]
[360041944,1746512096521,-151.0,0.0001783,2]
[360041945,1746512096544,-151.0,0.0001783,2]
[360041946,1746512096568,-151.0,0.0001783,2]
[360041947,1746512096591,-151.0,0.0001783,2]
[360041948,1746512096613,-1362.730722,0.0001783,2]
[360041949,1746512096637,-1362.730722,0.0001783,2]
[360041950,1746512096659,-160.8616136,0.00017831,2]
[360041951,1746512096682,-151.0,0.00017831,2]
[360041952,1746512096704,-151.0,0.00017831,2]
[360041953,1746512096727,-151.0,0.00017831,2]
[360041954,1746512096750,-151.0,0.00017831,2]
[360041955,1746512096773,-151.0,0.00017831,2]
[360041956,1746512096797,-151.0,0.00017831,2]
[360041957,1746512096820,-151.0,0.00017831,2]
[360041958,1746512096844,-151.0,0.00017831,2]
[360041959,1746512096868,-151.0,0.00017831,2]
[360041960,1746512096891,-151.0,0.00017831,2]
[360041961,1746512096914,-179.760661,0.00017831,2]
[360041962,1746512096938,-180.51676,0.00017831,2]
[360041963,1746512096960,-180.51676,0.00017831,2]
[360041964,1746512096983,-180.51676,0.00017831,2]
[360041965,1746512097006,-180.51676,0.00017831,2]
[360041966,1746512097029,-180.51676,0.00017831,2]
[360041967,1746512097051,-180.51676,0.00017831,2]
[360041968,1746512097074,-180.51676,0.00017831,2]
[360041969,1746512097097,-180.51676,0.00017831,2]
[360041970,1746512097120,-180.51676,0.00017831,2]
[360041971,1746512097143,-180.51676,0.00017831,2]
[360041972,1746512097167,-180.51676,0.00017831,2]
[360041973,1746512097189,-180.51676,0.00017831,2]
[360041974,1746512097210,-180.51676,0.00017831,2]
[360041975,1746512097233,-180.51676,0.00017831,2]
[360041976,1746512097256,-180.51676,0.00017831,2]
[360041977,1746512097279,-180.51676,0.00017831,2]
[360041978,1746512097302,-3538.357726,0.00017831,2]
[360041979,1746512097326,-526.772488,0.00017831,2]
[360041980,1746512097350,-526.772488,0.00017831,2]
[360041981,1746512097373,-165.065093,0.00017831,2]
[360041982,1746512097397,-65513.53892473,0.00017832,2]
[360041983,1746512102450,-254.7110553,0.0001707,2]
[360041984,1746512106305,-23.29289188,0.0001707,2]
[360042313,1746512139457,-211.34378459,0.0001707,2]
[360042517,1746512145854,-251.86746415,0.0001707,2]
[360042518,1746512148619,-168.29,0.0001707,2]
[360042519,1746512151366,-338.57877092,0.0001707,2]
[360042520,1746512161527,-232.48389585,0.0001707,2]
[360042521,1746512168562,-245.08792795,0.0001707,2]
[360042522,1746512178378,-242.30803995,0.0001707,2]
[360042523,1746512182254,-299.2214972,0.0001707,2]
[360042524,1746512188187,-181.59986625,0.0001707,2]
[360042526,1746512193256,-499.49384255,0.0001707,2]
[360042527,1746512197222,-164.01194511,0.00017069,2]
[360042528,1746512201709,-163.42128924,0.00017069,2]
[360042529,1746512205650,-173.0729231,0.00017069,2]
[360042530,1746512205674,-112.21660063,0.00017069,2]
[360042531,1746512208893,-198.51022503,0.00017069,2]
[360042532,1746512212291,-417.29220551,0.00016968,2]
[360042533,1746512222340,-195.3897969,0.00016968,2]
[360042534,1746512225097,-182.70779449,0.00016968,2]
[360042535,1746512229066,-406.77885473,0.00016968,2]
[360042536,1746512233808,-75.02434552,0.00016968,2]
[360042537,1746512233835,-211.37156323,0.00017068,2]
[360042538,1746512239507,-250.0,0.00017068,2]
[360042539,1746512243946,-38.62843677,0.00017068,2]
[360042540,1746512243968,-189.27317434,0.00017069,2]
[360042541,1746512243990,-500.0,0.00017069,2]
[360042542,1746512244013,-307.78054624,0.00017069,2]
[360042544,1746512261635,-206.61,0.00017059,3]
[360042545,1746512261661,-106.12487128,0.00017059,3]
[360042546,1746512270923,-312.73487128,0.00016607,2]
[360042547,1746512277128,-266.6972003,0.00016607,2]
[360042548,1746512281680,-349.70294012,0.00016607,2]
[360042549,1746512284943,-150.29705988,0.00016607,2]
[360042550,1746512290489,-15.27168872,0.00016607,2]
[360042551,1746512290515,-143.87512872,0.00017059,3]
[360042552,1746512290539,-139.83825387,0.00017068,2]
[360042553,1746512296456,-177.48716279,0.00017068,2]
[360042554,1746512301699,-182.67458334,0.00017068,2]
[360042555,1746512301722,-95.31402576,0.00017069,2]
[360042557,1746512307296,-96.905428,0.00017069,2]
[360042558,1746512307320,-264.11727906,0.00017069,2]
[360042559,1746512311926,-235.88272094,0.00017069,2]
[360042560,1746512311950,-264.11727906,0.00017069,2]
[360042561,1746512316807,-152.24720952,0.00017069,2]
[360042562,1746512324845,-389.3467017,0.00017068,2]
[360042563,1746512328796,-110.6532983,0.00017068,2]
[360042564,1746512328820,-48.23271401,0.00017068,2]
[360042565,1746512332482,-388.86677817,0.00017068,2]
[360042566,1746512335775,-181.28821342,0.00017068,2]
[360042567,1746512335798,-118.71178658,0.00017068,2]
[360042568,1746512340486,-252.90862775,0.00017068,2]
[360042569,1746512346146,-209.68169623,0.00017067,2]
[360042570,1746512350332,-246.74154091,0.00016968,2]
[360042571,1746512350356,-90.31830377,0.00017067,2]
[360042572,1746512350379,-121.59345359,0.00017068,2]
[360042573,1746512358314,-152.53933059,0.00017068,2]
[360042574,1746512358337,-90.23002538,0.00017068,2]
[360042575,1746512363236,-462.53805791,0.00017068,2]
[360042576,1746512363261,-54.0881074,0.00017068,2]
[360042577,1746512375441,-438.24248358,0.00017068,2]
[360042578,1746512385927,-7.66940902,0.00017068,2]
[360042579,1746512385950,-147.33059098,0.00017068,2]
[360042580,1746512390469,-151.0,0.000167,2]
[360042581,1746512390491,-1.78706243,0.00017068,2]
[360042582,1746512396178,-190.34894014,0.00017068,2]
[360042583,1746512400701,-160.53340645,0.00017068,2]
[360042584,1746512400724,-117.45520265,0.00017068,2]
[360042585,1746512406182,-295.40828407,0.00016968,2]
[360042586,1746512409768,-68.43081881,0.00016968,2]
[360042587,1746512409791,-146.37034761,0.00017053,2]
[360042588,1746512412661,-152.0,0.00017053,2]
[360042589,1746512415959,-57.82983571,0.00017053,2]
[360042590,1746512415981,-192.14655822,0.00017067,2]
[360042591,1746512419427,-107.85344178,0.00017067,2]
[360042592,1746512419450,-300.0,0.00017067,2]
[360042593,1746512419473,-80.42515075,0.00017067,2]
[360042594,1746512428779,-220.37099601,0.00017066,2]
[360042595,1746512433448,-79.62900399,0.00017066,2]
[360042596,1746512433473,-74.40548094,0.00017067,2]
[360042597,1746512468241,-193.96551507,0.00016967,2]
[360042598,1746512471814,-64.00816214,0.00016967,2]
[360042599,1746512471839,-279.43697918,0.00016967,2]
[360042600,1746512477344,-169.63928114,0.00016967,2]
[360042601,1746512483027,-412.95477337,0.00016967,2]
[360042602,1746512483625,-255.51283886,0.00016967,2]
[360042603,1746512483647,-157.44193451,0.00016967,2]
[360042604,1746512492579,-325.75794598,0.00016967,2]
[360042605,1746512497160,-156.48750878,0.00016967,2]
[360042606,1746512501721,-263.99238166,0.00016967,2]
[360042607,1746512501745,-165.59748559,0.00016968,2]
[360042610,1746512558196,-267.19797254,0.000169,2]
[360042611,1746512561047,-304.09659381,0.000169,2]
[360042612,1746512564917,-223.35432523,0.000169,2]
[360042614,1746512570272,-276.64567477,0.000169,2]
[360042615,1746512573130,-1290.45797371,0.00016766,2]
[360042617,1746512593143,-258.07187459,0.00016766,2]
[360042618,1746512596357,-144.86419573,0.00016766,2]
[360042619,1746512596380,-12.98150791,0.000168,2]
[360042620,1746512603471,-240.2197683,0.000168,2]
[360042621,1746512692451,-364.21659498,0.00015969,2]
[360042622,1746512699874,-174.53594813,0.00015969,2]
[360042623,1746512704957,-215.30149294,0.00015968,2]
[360042627,1746512709678,-84.69850706,0.00015968,2]
[360042628,1746512709702,-227.70224622,0.00015968,2]
[360042630,1746512715215,-72.29775378,0.00015968,2]
[360042631,1746512715241,-253.16629809,0.00015968,2]
[360042632,1746512720302,-644.01973571,0.00015968,2]
[360042633,1746512722638,-302.8139662,0.00015968,2]
[360042634,1746512722670,-18.75415391,0.00015968,2]
[360042636,1746512729183,-199.02021691,0.00015968,2]
[360042637,1746512732565,-82.22562918,0.00015968,2]
[360042638,1746512732589,-196.46845104,0.00015969,2]
[360042639,1746512737689,-240.48020269,0.00015969,2]
[360042643,1746512858208,-170.18,0.00015958,3]